Cogmind - Beta 15 @@@ ROGUE MODE // 2025.05.13 @ 03:25:14 Player: Lillith Result: Destroyed by Q4-E51(R) with Subdweller Laser Performance ------------- Evolutions (0) 0 Regions Visited (2) 400 Robots Destroyed (14) 70 Value Destroyed (306) 306 Prototype IDs (0) 0 Alien Tech Used (0) 0 Bonus (-11) -11 TOTAL SCORE: 765 Bonus ------- Friendly Fire -11 Cogmind --------- Core Integrity 0/250 Matter 205/300 Energy 248/250 System Corruption 0% Temperature Cool (6) Movement Treading (320) Ox2 Location -10/Subcaves Parts ------- > --- POWER (1) -------- Ion Engine > --- PROPULSION (2) --- Light Treads Light Treads > --- UTILITY (2) ------ Huge Storage Unit Makeshift Light Armor Plating > --- WEAPON (2) ------- Beam Cannon Grenade Launcher > --- INVENTORY (25) --- Ion Engine Subdweller Power Source Aluminum Leg Aluminum Leg Small Storage Unit High-capacity Storage Unit Medium Matter Pod (100) Subdweller Optics Improved Terrain Scanner Seismic Detector ECM Suite Light Armor Plating Scrap Shield Makeshift System Restoration Module Heavy Riot Gun Medium Laser Small Laser Subdweller Laser Beam Cannon Assault Rifle Grenade Launcher Subdweller Shrapnel Launcher Hammer Peak State ------------ > --- POWER ------------ Ion Engine > --- PROPULSION ------- Aluminum Leg Wheel > --- UTILITY ---------- Huge Storage Unit Makeshift Light Armor Plating > --- WEAPON ----------- Beam Cannon Hammer > --- INVENTORY -------- Ion Engine Subdweller Power Source Light Treads Light Treads Aluminum Leg Small Storage Unit High-capacity Storage Unit Medium Matter Pod Subdweller Optics Improved Terrain Scanner Seismic Detector ECM Suite Light Armor Plating Scrap Shield Makeshift System Restoration Module Medium Laser Small Laser Subdweller Laser Beam Cannon Assault Rifle Grenade Launcher Grenade Launcher Subdweller Shrapnel Launcher [Rating: 13] Favorites ----------- Power Ion Engine Engine Ion Engine Propulsion Wheel Treads Light Treads Leg Aluminum Leg Wheel Wheel Utility Huge Storage Unit Device Seismic Detector Storage Huge Storage Unit Protection Makeshift Light Armor Plating Weapon Beam Cannon Energy Gun Medium Laser Energy Cannon Beam Cannon Ballistic Gun Assault Rifle Launcher Grenade Launcher Impact Weapon Hammer Build | -11 -10 -10 ------- Run | Yrd Mat Sub Slots Evolved . | . . . Power . | . . . Propulsion . | . . . Utility . | . . . Weapon . | . . . Parts Attached 20 | 8 4 8 Power 1 | 1 . . Engine 1 | 1 . . Core . | . . . Reactor . | . . . Propulsion 7 | 2 2 3 Treads 2 | . . 2 Leg 2 | 2 . . Wheel 3 | . 2 1 Hover . | . . . Flight . | . . . Utility 6 | 3 2 1 Device 2 | 2 . . Storage 2 | 1 1 . Processor . | . . . Hackware . | . . . Protection 2 | . 1 1 Artifact . | . . . Weapon 6 | 2 . 4 Energy Gun 1 | 1 . . Energy Cannon 2 | . . 2 Ballistic Gun 1 | 1 . . Ballistic Cannon . | . . . Launcher 1 | . . 1 Special Weapon . | . . . Impact Weapon 1 | . . 1 Slashing Weapon . | . . . Piercing Weapon . | . . . Special Melee Weapon . | . . . Unidentified Prototypes . | . . . Parts Lost 4 | . . 4 Power . | . . . Propulsion 3 | . . 3 Utility 1 | . . 1 Weapon . | . . . Highest Loss Streak 2 | . . 2 To Critical Strikes . | . . . Average Backups 17 | 4 14 22 Power 1 | . 1 1 Propulsion 3 | 2 4 3 Utility 6 | . 5 9 Weapon 5 | . 4 8 Tool/Special . | . . . Unused Backups 14 | . . 14 Power 2 | . . 2 Propulsion . | . . . Utility 7 | . . 7 Weapon 5 | . . 5 Tool/Special . | . . . Average Slot Usage (%) 97 | . 100 94 Engine 14 | . 14 14 Treads 4 | . . 9 Leg 2 | . 1 3 Wheel 19 | . 26 12 Device 4 | . 9 . Storage 14 | . 14 14 Protection 7 | . 4 10 Energy Gun 6 | . 14 . Energy Cannon 9 | . . 18 Ballistic Gun 7 | . 14 1 Launcher 2 | . . 4 Impact Weapon 2 | . . 3 Peak Build Rating 13 | 9 8 13 Average Rating 9 | 5 7 11 On Entrance 5 | . 7 8 Naked Turns . | . . . Heaviest Build 95 | 15 92 95 Greatest Support 40 | 20 20 40 Greatest Overweight (x) 9 | . 4 9 Average Overweight (x) 4 | . 3 5 Largest Inventory Capacity 25 | 8 25 25 Average Capacity 23 | 7 24 25 Most Carried 25 | 7 17 25 Average Carried 18 | 4 14 23 Final Capacity 25 | 8 25 25 Final Carried 24 | 7 17 24 Class Distribution -------------------- 100% | Mutant Dominant Class ---------------- Mutant | -10/Materials Mutant | -10/Subcaves Resources | -11 -10 -10 ----------- Run | Yrd Mat Sub Matter Collected 565 | 158 363 44 Remotely . | . . . Salvage Created 438 | 45 250 143 Parts 27 | 6 13 8 Haulers Intercepted 2 | . 2 . Recyclers Shooed 1 | . 1 . Parts Field Recycled . | . . . Retrieved Matter . | . . . Parts Self-Destructed 3 | . . 3 Prevented . | . . . Kills | -11 -10 -10 ------- Run | Yrd Mat Sub Combat Hostiles Destroyed 9 | . 5 4 Guns 5 | . 5 . Cannons 3 | . . 3 AOE 1 | . . 1 Classes Destroyed 6 | 1 4 1 Tunneler 2 | 2 . . Hauler 2 | . 2 . Watcher 1 | . 1 . Swarmer 3 | . 3 . Grunt 4 | . 2 2 Subdweller 2 | . . 2 Best Kill Streak 3 | 2 3 2 Combat Bots Only 3 | . 3 2 Max Kills in Single Turn 1 | 1 1 1 Gunslinging . | . . . Exploded 1 | . . 1 Melee . | . . . Uniques/NPCs Destroyed . | . . . Combat | -11 -10 -10 -------- Run | Yrd Mat Sub Hostile Shots Fired 40 | . 17 23 Missed 9 | . 3 6 Hits 31 | . 14 17 Projectile 31 | . 14 17 AOE 9 | . . 9 Critical Strikes 1 | . 1 . Damage Taken 886 | . 169 717 Core 268 | . 33 235 Absorbed by Shields . | . . . Core Remaining (%) 100 | 100 . . Volleys Fired 47 | 6 21 20 Largest 2 | 2 2 2 Hottest 120 | 70 70 120 Shots Fired 89 | 12 42 35 Gun 57 | 12 42 3 Cannon 28 | . . 28 Launcher 4 | . . 4 Special . | . . . Kinetic 30 | 6 21 3 Thermal 55 | 6 21 28 Explosive 4 | . . 4 Electromagnetic . | . . . Robot Hit Streak 9 | 6 9 8 Robot Miss Streak 2 | 2 2 2 Penetration Max . | . . . Secondary Targets . | . . . Shots Hit Robots 54 | 7 27 20 Core Hits 25 | 2 13 10 Critical Kills . | . . . Critical Parts Destroyed . | . . . Critical Strikes 1 | . 1 . Burn 1 | . 1 . Melee Attacks 13 | . . 13 Impact 13 | . . 13 Slashing . | . . . Piercing . | . . . Sneak Attacks . | . . . Combat Hostiles . | . . . Follow-up Attacks . | . . . Damage Inflicted 1039 | 111 368 560 Guns 504 | 111 368 25 Cannons 279 | . . 279 Explosions 256 | . . 256 Melee . | . . . Ramming . | . . . Kinetic 232 | 50 157 25 Thermal 551 | 61 211 279 Explosive 256 | . . 256 Electromagnetic . | . . . Impact . | . . . Slashing . | . . . Piercing . | . . . Highest Corruption . | . . . Average Corruption . | . . . Corruption Purged . | . . . Corruption Blocked . | . . . Overload Shots . | . . . Overflow Damage . | . . . Projectiles . | . . . Explosions . | . . . Melee . | . . . Knockbacks . | . . . Impact . | . . . Kinetic . | . . . Secondary . | . . . Self-Inflicted Damage . | . . . Shots . | . . . Rammed . | . . . Targets Rammed . | . . . Kicked . | . . . Crushed . | . . . Highest Temperature 108 | 36 108 18 Average Temperature 25 | 15 29 9 Received Heat Transfer 147 | . 69 78 Siege Activations . | . . . Martial Activations . | . . . Shielding Activations . | . . . Robots Disrupted . | . . . Combat Hostiles . | . . . Robots Corrupted . | . . . Combat Hostiles . | . . . Parts Fried . | . . . Impact Corruptions . | . . . Robots Melted . | . . . Combat Hostiles . | . . . Parts Melted 2 | . 2 . Heat Transferred 1480 | 185 703 592 Parts Sabotaged . | . . . Parts Stolen . | . . . Parts Stripped . | . . . Power Chain Reactions . | . . . Alert | -11 -10 -10 ------- Run | Yrd Mat Sub Maximum Alert Level . | . . . Low Security (%) 100 | 100 100 . Level 1 . | . . . Level 2 . | . . . Level 3 . | . . . Level 4 . | . . . Level 5 . | . . . High Security . | . . . Max Security . | . . . Peak Influence 71 | 5 71 . Initial . | . . . Average 10 | 1 11 . Influence Increases 233 | 10 173 50 Destroy 0b10 Robot/C 140 | . 100 40 Destroy 0b10 Robot/NC 25 | 10 15 . Destroy Leader 36 | . 26 10 Successful Hack 15 | . 15 . Destroy Structure 2 | . 2 . Lose Combat Pursuer 15 | . 15 . Influence Decreases 233 | 10 173 50 Time Decay 233 | 10 173 50 Squads Dispatched . | . . . Investigation . | . . . Extermination . | . . . Reinforcement . | . . . Assault . | . . . Garrison . | . . . Intercept . | . . . Searches Triggered . | . . . Construction Impeded . | . . . Haulers Reinforced . | . . . Active Scanning Responses . | . . . Cargo Convoy Interrupts . | . . . Stealth | -11 -10 -10 --------- Run | Yrd Mat Sub Distress Signals 1 | . 1 . Communications Jammed . | . . . Distress Signals . | . . . Times Spotted 17 | . 11 6 Peak Tracking Total 5 | . 5 2 Tactical Retreats 1 | . 1 . Traps | -11 -10 -10 ------- Run | Yrd Mat Sub Traps Triggered 1 | . . 1 Indirectly . | . . . Trap Hack Attempts . | . . . Triggered . | . . . Disarmed . | . . . Reprogrammed . | . . . Reused . | . . . Traps Extracted . | . . . Installed . | . . . Triggered . | . . . Machines | -11 -10 -10 ---------- Run | Yrd Mat Sub Machines Disabled . | . . . Max in Single Turn . | . . . Machines Repaired . | . . . Machines Dismantled . | . . . Machines Sabotaged . | . . . Overloaded Fab Kills . | . . . Hacking | -11 -10 -10 --------- Run | Yrd Mat Sub Machines Accessed 8 | . 8 . Terminals 8 | . 8 . Fabricators . | . . . Repair Stations . | . . . Recycling Units . | . . . Scanalyzers . | . . . Garrison Access . | . . . Total Hacks 20 | . 20 . Successful 10 | . 10 . Failed 10 | . 10 . Catastrophic 1 | . 1 . Database Lockouts . | . . . Manual 14 | . 14 . Terminals 20 | . 20 . Fabricators . | . . . Repair Stations . | . . . Recycling Units . | . . . Scanalyzers . | . . . Garrison Access . | . . . Terminal Hacks 5 | . 5 . Emergency Access Points 1 | . 1 . Locate Traps 2 | . 2 . Hauler Manifests 1 | . 1 . Registered Components 1 | . 1 . Fabricator Hacks . | . . . Repair Station Hacks . | . . . Recycling Unit Hacks . | . . . Scanalyzer . | . . . Garrison Access Hacks . | . . . Unauthorized Hacks 5 | . 5 . Terminals 5 | . 5 . Skim 5 | . 5 . Fabricators . | . . . Repair Stations . | . . . Recycling Units . | . . . Scanalyzers . | . . . Garrison Access . | . . . Data Cores Recovered . | . . . Used . | . . . Hacking Detections 6 | . 6 . Full Trace Events . | . . . Feedback Events . | . . . Feedback Blocked . | . . . Robot Schematics Acquired . | . . . Robots Built . | . . . Authchips . | . . . Time . | . . . Total Robot Build Rating . | . . . Part Schematics Acquired . | . . . Parts Built . | . . . Authchips . | . . . Time . | . . . Total Part Build Rating . | . . . Parts Repaired . | . . . Time . | . . . Parts Recycled . | . . . Recycled Matter . | . . . Retrieved Matter . | . . . Retrieved Components . | . . . Parts Scanalyzed . | . . . Part Schematics Acquired . | . . . Parts Damaged . | . . . Bothacking | -11 -10 -10 ------------ Run | Yrd Mat Sub Used RIF Installer . | . . . Robots Hacked . | . . . Non-combat . | . . . Combat . | . . . Robot Hacks Applied . | . . . Relay Couplers Released . | . . . Fabnet Peak Effective % . | . . . Robots Rewired . | . . . Allies Hacked . | . . . Hacks Repelled . | . . . Allies | -11 -10 -10 -------- Run | Yrd Mat Sub Total Allies . | . . . Largest Group . | . . . Highest-Rated Group . | . . . Highest-Rated Ally . | . . . Total Orders . | . . . Ally Attacks . | . . . Total Damage . | . . . Kills . | . . . Allies Corrupted . | . . . Allies Melted . | . . . Intel | -11 -10 -10 ------- Run | Yrd Mat Sub Active Infowar (turns) 882 | 39 843 . Terrain 36 | 36 . . Seismic 846 | 3 843 . Robot Analysis Total . | . . . Derelict Logs Recovered 1 | . . 1 Drone Launches . | . . . Drone Recoveries . | . . . Exploration | -11 -10 -10 ------------- Run | Yrd Mat Sub Turns Passed 2690 | 126 1239 1325 Spaces Moved 1455 | 79 799 577 Core 7 | 7 . . Treads 139 | . . 139 Legs 102 | 72 30 . Wheels 1207 | . 769 438 Hover . | . . . Flight . | . . . Fastest Speed 50 | 50 120 131 Average Speed 165 | 113 139 210 Slowest Speed 320 | 120 140 320 Overloaded Moves . | . . . Propulsion Burnouts . | . . . Robots Hopped . | . . . Potential Cave-ins . | . . . Cave-ins Triggered . | . . . Exploration Rate (%) 45 | 5 94 38 Regions Visited 2 Branch Regions 1 Pre-discovered Areas 1 | . . 1 Known Exits Taken . | . . . Unknown Exits Taken 2 | 1 1 . Scrap Searched 7 | . . 7 Spaces Dug . | . . . Terrain Destroyed 32 | . . 32 Melee . | . . . Projectile . | . . . AOE 32 | . . 32 Terrain Rammed . | . . . Walls Destroyed . | . . . Machines Disabled . | . . . Actions | -11 -10 -10 --------- Run | Yrd Mat Sub Total 1607 | 99 880 628 Wait 45 | . 45 . Move 1453 | 78 798 577 Hop . | . . . Pick Up 25 | 7 10 8 Fast Attach 8 | 7 . 1 Attach 3 | . . 3 Detach . | . . . Swap 13 | 1 6 6 Drop . | . . . Fire 47 | 6 21 20 Melee 13 | . . 13 Ram . | . . . Kick . | . . . Crush . | . . . Escape Stasis . | . . . Rewire . | . . . Trap . | . . . Miscellaneous . | . . . Route ------- -11/Scrapyard -10/Materials (discovered 5 exits: [*Mat x3] / [*Min] / [*Sub]) -10/Subcaves (discovered 4 exits: Mat x2 / Rec / [Scr]) History --------- Turn | Location | Event 6 | -11/Scrapyard | Discovered new exit (range 15) 127 | -11/Scrapyard | Entered Materials 128 | -10/Materials | Met a group of wandering Federalists 205 | -10/Materials | Lost 3 allies 313 | -10/Materials | Build established: Mutant 495 | -10/Materials | Discovered new exit (range 15) 580 | -10/Materials | Discovered new exit (range 10) 724 | -10/Materials | Discovered new exit (range 12) 810 | -10/Materials | Discovered new exit (range 16) 1137 | -10/Materials | Discovered new exit (range 16) 1249 | -10/Materials | Learned Storage security intel 1333 | -10/Materials | Learned location of 2 exits from Subcaves 1361 | -10/Materials | Learned Storage emergency access door positions 1366 | -10/Materials | Entered Subcaves 1367 | -10/Subcaves | Continued accompanying wandering Federalists (2) 1367 | -10/Subcaves | Approached by a straggling Scientist 1367 | -10/Subcaves | Identified exit to Materials 1368 | -10/Subcaves | Identified exit to Recycling 1375 | -10/Subcaves | Learned location of Zion (-6) 1375 | -10/Subcaves | Met a Zionite searching for "candidates" 1562 | -10/Subcaves | Core integrity fell below 50% 1571 | -10/Subcaves | Core integrity fell below 20% 1658 | -10/Subcaves | Learned 2 Materials zone layouts 1867 | -10/Subcaves | Shifting Twisted Machinery released Mak. Light Armor Plating 1880 | -10/Subcaves | Shifting Twisted Machinery released Hvy. Riot Gun 1968 | -10/Subcaves | A swath of the cavern ceiling suddenly collapsed 2131 | -10/Subcaves | Shifting Twisted Machinery released Flamer 2691 | -10/Subcaves | Destroyed by Q4-E51(R) with Subdweller Laser Last Messages --------------- SR-IJI(c): "I think it's somewhere east of here" Flamer falls loose from the Twisted Machinery. SR-IJI(c): "I think it's somewhere east of here" 02231_ Wheel destroyed. SR-IJI(c): "I think it's somewhere east of here" 02234_ G-47 Trooper destroyed. 02240_ Aluminum Leg fries itself beyond repair. 02240_ G-34 Mercenary destroyed. 02243_ Lgt. Nuclear Core fries itself beyond repair. 02256_ Sml. Laser fries itself beyond repair. 02261_ The unstable cave ceiling collapses. SR-IJI(c): "I think it's somewhere east of here" 02286_ The unstable cave ceiling collapses. SR-IJI(c): "I think it's somewhere northeast of here" SR-IJI(c): "I think it's somewhere east of here" SR-IJI(c): "I think it's somewhere northeast of here" Map ----- +----------------------------------------------------+ | ?????????????????????????????????????????????????? | | ?????????????????????????????????????????????????? | | ?????????????"???????????????????????????????????? | | ????#####??? "?""????????????????????????????????? | | ????# #??# "" ##???????????????????????????????? | | ?????# #?? """""#???????????????????????????????? | | ?????## ###"" ### ?????????????????????????????? | | #####?# """ ?????????????????????????????? | | # # ### """ ??????????????????????????????? | | " "##""" """ #???????????????????????????????? | | ##" ###""" #######????? ?????????????????????????? | | ## ### ###?????? " ?????????????????????????? | | ### "# ##???? " ?????????????????????????? | | ?#"" #???? " #????????????????????????? | | ?##" #????? ????????????????????????? | | ?# # " "" ####????? #???????????????????????? | | ?###### ###????????? ###?????????????????????? | | ??????# ##?????????? ##????????????????????? | | ?????## #???????????R ????#????????????????? | | ?????# ###??????????? ??? #????????????????? | | ?????#" ###???????????# ??? #????????????????? | | ?????## "##???????????# #??# ##???????????????? | | ?????## "##???????????# ### ##??????????????? | | ##?####"""#???????????# ##?????????????? | | ## ##""""#???????????# #?????????????? | | "#""##"""#????????## @ #???????????????????? | | #"#"""#"""#??????### ##???????????????????? | | #""#""#""# ????## ###????????????????????? | | ######"##"#"####### ##??????????????????????? | | #####" ""##?## #???????????????????????? | | #########?# ##???????????????????????? | | #####?????# ##????????????????????????? | | ##??#### #?????????????????????????? | | #### ## c #?????????????????????????? | | ## #?????????????????????????? | | #???????????????????????? | | #???????????????????????? | | # ### ### ????????????????????? | | #### #?# ###?? ??????????????????? | | ???## ## ##???? ??????????????????? | | ????# #????? ??????????????????? | | ???? #????? ??????????????????? | | ??? ## ???? ## ??????????????????? | | ?? #### ??? #? ???????????????????? | | ? ##??# ????????????????????????????? | | ###???# ???????????????????????????? | | # ##?????# ???????????????????????????? | | ## ###??????? ## #???????????????????????????? | | ?##?????????? ##?###????????????????????????????? | | ????????????? ##?????????????????????????????????? | +----------------------------------------------------+ Best States ------------- Heat Dissipation 25 Energy Generation 10 Energy Capacity 250 Matter Stores 300 Matter Capacity 300 Sight Range 16 Terrain Scan Range 16 Terrain Scan Density 10 Armor Coverage 150 Evasion (%) 55 Recoil Reduction 2 Item Schematics ----------------- None Robot Schematics ------------------ None Fabricated ------------ Nothing Repaired ---------- Nothing Alien Tech Used ----------------- None Achievements -------------- None Challenges ------------ None Game ------ Seed NeutronActiveRedirector Manual? 0 Play Time 00:17:57 Cumulative 44.1 hours Start 2025.05.13 @ 03:10:06 End 2025.05.13 @ 03:25:14 Sessions 1 Manual Loads 0 Difficulty Rogue Special Mode None Game No. 73 Rogue 73 Adventurer 0 Explorer 0 Win Type - Total 0 Types 0/0/0/0/0/0/0/0/0/0 Lore% 39 Gallery% 29 Achievement% 29 Wizard Run 0 Options --------- Layout 2 ASCII 0 Keyboard 1 Movement Arrows Keybinds 0 Fullscreen 2 Font 32/SmallcapsGlow Map View 50x44 Zoom Use 0% Tactical HUD 1 Map Filters NONE Filters NONE Steam 1 RUN: ccf1e24c-c8db-4089-b72d-f05e1f6dc7aa